Cogmind - Beta 10.1 @@@ ROGUE MODE // 2020.09.23 @ 05:43:01 Player: Nimraaz Result: Destroyed by as-37354 with Assembled Blade Performance ------------- Evolutions (0) 0 Regions Visited (2) 400 Robots Destroyed (17) 85 Value Destroyed (268) 268 Prototype IDs (0) 0 Alien Tech Used (0) 0 Bonus (0) 0 TOTAL SCORE: 753 Bonus ------- None Cogmind --------- Core Integrity 0/250 Matter 273/300 Energy 96/100 System Corruption 0% Temperature Cool (2) Movement Treading (160) Location -10/Mines Parts ------- > --- POWER (1) -------- (None) > --- PROPULSION (2) --- Light Treads Light Treads > --- UTILITY (2) ------ Large Storage Unit Large Storage Unit > --- WEAPON (2) ------- (None) > --- INVENTORY (16) --- Ion Engine Ion Engine Light Ion Engine Aluminum Leg Small Storage Unit Small Storage Unit Large Storage Unit Large Storage Unit Core Shielding Weapon Shielding Weapon Shielding Weapon Shielding Peak State ------------ > --- POWER ------------ Ion Engine > --- PROPULSION ------- Aluminum Leg Aluminum Leg > --- UTILITY ---------- Large Storage Unit Large Storage Unit > --- WEAPON ----------- Medium Laser Assault Rifle > --- INVENTORY -------- Ion Engine Light Treads Light Treads Aluminum Leg Small Storage Unit Small Storage Unit Weapon Shielding Weapon Shielding Weapon Shielding Small Laser [Rating: 8] Favorites ----------- Power Ion Engine Engine Ion Engine Propulsion Aluminum Leg Treads Light Treads Leg Aluminum Leg Utility Large Storage Unit Storage Large Storage Unit Weapon Assault Rifle Energy Gun Medium Laser Ballistic Gun Assault Rifle Build | -11 -10 -10 ------- Run | Scr Mat Min Slots Evolved . | . . . Power . | . . . Propulsion . | . . . Utility . | . . . Weapon . | . . . Parts Attached 20 | 7 5 8 Power 4 | 1 1 2 Engine 4 | 1 1 2 Core . | . . . Reactor . | . . . Propulsion 8 | 2 1 5 Treads 2 | . . 2 Leg 6 | 2 1 3 Wheel . | . . . Hover . | . . . Flight . | . . . Utility 4 | 2 2 . Device . | . . . Storage 4 | 2 2 . Processor . | . . . Hackware . | . . . Protection . | . . . Artifact . | . . . Weapon 4 | 2 1 1 Energy Gun 2 | 1 . 1 Energy Cannon . | . . . Ballistic Gun 2 | 1 1 . Ballistic Cannon . | . . . Launcher . | . . . Special Weapon . | . . . Impact Weapon . | . . . Slashing Weapon . | . . . Piercing Weapon . | . . . Special Melee Weapon . | . . . Unidentified Prototypes . | . . . Parts Lost 8 | . 1 7 Power 2 | . . 2 Propulsion 2 | . . 2 Utility . | . . . Weapon 4 | . 1 3 Highest Loss Streak 4 | . 1 4 Average Slot Usage (%) 94 | . 99 90 Engine 13 | . 14 13 Treads 1 | . . 2 Leg 26 | . 28 25 Storage 28 | . 28 28 Energy Gun 7 | . 8 7 Ballistic Gun 15 | . 19 12 Naked Turns . | . . . Heaviest Build 41 | 17 41 40 Greatest Support 40 | 20 20 40 Greatest Overweight (x) 2 | . 2 1 Average Overweight (x) 1 | . 1 . Largest Inventory Capacity 16 | 8 16 16 Average Capacity 15 | 5 15 16 Most Carried 15 | 3 13 15 Average Carried 10 | 1 10 12 Final Capacity 16 | 8 16 16 Final Carried 13 | 3 13 12 Class Distribution -------------------- 100% | Mutant Dominant Class ---------------- Mutant | -10/Materials Mutant | -10/Mines Resources | -11 -10 -10 ----------- Run | Scr Mat Min Matter Collected 493 | 269 129 95 Remotely . | . . . Salvage Created 527 | 50 262 215 Parts 41 | 2 27 12 Haulers Intercepted . | . . . Recyclers Shooed 1 | 1 . . Parts Field Recycled . | . . . Retrieved Matter . | . . . Parts Self-Destructed . | . . . Prevented . | . . . Kills | -11 -10 -10 ------- Run | Scr Mat Min Combat Hostiles Destroyed 12 | . 7 5 Guns 12 | . 7 5 Classes Destroyed 5 | 1 3 1 Builder 1 | . . 1 Recycler 3 | 1 1 1 Watcher 1 | . 1 . Swarmer 8 | . 5 3 Grunt 4 | . 2 2 Best Kill Streak 3 | 1 3 3 Combat Bots Only 3 | . 3 3 Max Kills in Single Turn 1 | 1 1 1 Gunslinging . | . . . Exploded . | . . . Melee . | . . . Uniques/NPCs Destroyed . | . . . Combat | -11 -10 -10 -------- Run | Scr Mat Min Damage Taken 1276 | . 408 868 Core 282 | . 89 193 Absorbed by Shields . | . . . Core Remaining (%) 100 | 100 . . Volleys Fired 54 | 2 21 31 Largest 2 | 2 2 2 Hottest 70 | 70 70 40 Shots Fired 94 | 4 40 50 Gun 94 | 4 40 50 Cannon . | . . . Launcher . | . . . Special . | . . . Kinetic 71 | 2 30 39 Thermal 23 | 2 10 11 Explosive . | . . . Electromagnetic . | . . . Robot Hit Streak 10 | 2 6 10 Robot Miss Streak 3 | 1 3 2 Penetration Max . | . . . Secondary Targets 2 | . 1 1 Max Gunslinging Chain 1 | . 1 1 Shots Hit Robots 63 | 2 23 38 Core Hits 25 | 2 11 12 Critical Hits . | . . . Critical Kills . | . . . Critical Parts Destroyed . | . . . Melee Attacks . | . . . Impact . | . . . Slashing . | . . . Piercing . | . . . Sneak Attacks . | . . . Combat Hostiles . | . . . Follow-up Attacks . | . . . Damage Inflicted 714 | 42 258 414 Guns 714 | 42 258 414 Cannons . | . . . Explosions . | . . . Melee . | . . . Ramming . | . . . Kinetic 490 | 29 146 315 Thermal 224 | 13 112 99 Explosive . | . . . Electromagnetic . | . . . Impact . | . . . Slashing . | . . . Piercing . | . . . Highest Corruption . | . . . Average Corruption . | . . . Corruption Purged . | . . . Overload Shots . | . . . Overflow Damage . | . . . Projectiles . | . . . Explosions . | . . . Melee . | . . . Knockbacks . | . . . Impact . | . . . Kinetic . | . . . Secondary . | . . . Self-Inflicted Damage . | . . . Shots . | . . . Rammed . | . . . Targets Rammed . | . . . Kicked . | . . . Crushed . | . . . Highest Temperature 105 | . 105 33 Average Temperature 30 | . 44 13 Received Heat Transfer 315 | . 132 183 Siege Activations . | . . . Robots Corrupted . | . . . Combat Hostiles . | . . . Parts Fried . | . . . Impact Corruptions . | . . . Robots Melted . | . . . Combat Hostiles . | . . . Parts Melted 3 | . 2 1 Heat Transferred 595 | 37 333 225 Parts Sabotaged . | . . . Parts Stolen . | . . . Parts Stripped . | . . . Power Chain Reactions . | . . . Missiles Intercepted . | . . . Alert | -11 -10 -10 ------- Run | Scr Mat Min Peak Influence 190 | 5 190 173 Initial 73 | . 3 73 Average 112 | 3 92 144 Maximum Alert Level . | . . . Low Security (%) 100 | 100 100 100 Level 1 . | . . . Level 2 . | . . . Level 3 . | . . . Level 4 . | . . . Level 5 . | . . . High Security . | . . . Max Security . | . . . Squads Dispatched 2 | . 2 . Investigation . | . . . Extermination . | . . . Reinforcement 2 | . 2 . Assault . | . . . Garrison . | . . . Intercept . | . . . Construction Impeded . | . . . Haulers Reinforced . | . . . Stealth | -11 -10 -10 --------- Run | Scr Mat Min Distress Signals . | . . . Communications Jammed . | . . . Distress Signals . | . . . Times Spotted 37 | . 12 25 Peak Tracking Total 16 | . 3 16 Tactical Retreats 4 | . 2 2 Traps | -11 -10 -10 ------- Run | Scr Mat Min Traps Triggered . | . . . Indirectly . | . . . Trap Hack Attempts . | . . . Triggered . | . . . Disarmed . | . . . Reprogrammed . | . . . Reused . | . . . Traps Extracted . | . . . Installed . | . . . Triggered . | . . . Machines | -11 -10 -10 ---------- Run | Scr Mat Min Machines Disabled . | . . . Max in Single Turn . | . . . Machines Sabotaged . | . . . Garrisons Compromised . | . . . Overloaded Fab Kills . | . . . Fab Network Shutdowns . | . . . Hacking | -11 -10 -10 --------- Run | Scr Mat Min Machines Accessed . | . . . Terminals . | . . . Fabricators . | . . . Repair Stations . | . . . Recycling Units . | . . . Scanalyzers . | . . . Garrison Access . | . . . Total Hacks . | . . . Successful . | . . . Failed . | . . . Catastrophic . | . . . Database Lockouts . | . . . Manual . | . . . Terminals . | . . . Fabricators . | . . . Repair Stations . | . . . Recycling Units . | . . . Scanalyzers . | . . . Garrison Access . | . . . Terminal Hacks . | . . . Fabricator Hacks . | . . . Repair Station Hacks . | . . . Recycling Unit Hacks . | . . . Scanalyzer . | . . . Garrison Access Hacks . | . . . Unauthorized Hacks . | . . . Terminals . | . . . Fabricators . | . . . Repair Stations . | . . . Recycling Units . | . . . Scanalyzers . | . . . Garrison Access . | . . . Data Cores Recovered . | . . . Used . | . . . Hacking Detections . | . . . Full Trace Events . | . . . Feedback Events . | . . . Feedback Blocked . | . . . Robot Schematics Acquired . | . . . Robots Built . | . . . Matter . | . . . Time . | . . . Total Robot Build Rating . | . . . Part Schematics Acquired . | . . . Parts Built . | . . . Matter . | . . . Time . | . . . Total Part Build Rating . | . . . Parts Repaired . | . . . Time . | . . . Parts Recycled . | . . . Recycled Matter . | . . . Retrieved Matter . | . . . Retrieved Components . | . . . Parts Scanalyzed . | . . . Part Schematics Acquired . | . . . Parts Damaged . | . . . Bothacking | -11 -10 -10 ------------ Run | Scr Mat Min Used RIF Installer . | . . . Robots Hacked . | . . . Non-combat . | . . . Combat . | . . . Robot Hacks Applied . | . . . Relay Couplers Released . | . . . Robots Rewired . | . . . Allies Hacked . | . . . Hacks Repelled . | . . . Allies | -11 -10 -10 -------- Run | Scr Mat Min Total Allies . | . . . Largest Group . | . . . Highest-Rated Group . | . . . Highest-Rated Ally . | . . . Total Orders . | . . . Ally Attacks . | . . . Total Damage . | . . . Kills . | . . . Allies Corrupted . | . . . Allies Melted . | . . . Intel | -11 -10 -10 ------- Run | Scr Mat Min Robot Analysis Total . | . . . Derelict Logs Recovered 2 | . . 2 Drone Launches . | . . . Drone Recoveries . | . . . Exploration | -11 -10 -10 ------------- Run | Scr Mat Min Turns Passed 849 | 61 353 435 Spaces Moved 433 | 38 170 225 Core 5 | 5 . . Treads 21 | . . 21 Legs 407 | 33 170 204 Wheels . | . . . Hover . | . . . Flight . | . . . Fastest Speed 50 | 50 120 150 Average Speed 152 | 110 163 151 Slowest Speed 180 | 120 180 180 Overloaded Moves . | . . . Propulsion Burnouts . | . . . Robots Hopped . | . . . Cave-ins Triggered . | . . . Exploration Rate (%) 28 | 3 42 41 Regions Visited 2 Branch Regions 1 Pre-discovered Areas 1 | . . 1 Known Exits Taken . | . . . Unknown Exits Taken 2 | 1 1 . Scrap Searched 1 | . . 1 Spaces Dug . | . . . Terrain Destroyed . | . . . Melee . | . . . Projectile . | . . . AOE . | . . . Terrain Rammed . | . . . Walls Destroyed . | . . . Machines Disabled . | . . . Actions | -11 -10 -10 --------- Run | Scr Mat Min Total 530 | 49 205 276 Wait 8 | . 1 7 Move 431 | 37 169 225 Hop . | . . . Pick Up 13 | 3 8 2 Fast Attach 8 | 7 1 . Attach 7 | . . 7 Detach 3 | . . 3 Swap 5 | . 4 1 Drop 1 | . 1 . Fire 54 | 2 21 31 Melee . | . . . Ram . | . . . Kick . | . . . Crush . | . . . Escape Stasis . | . . . Rewire . | . . . Trap . | . . . Miscellaneous . | . . . Route ------- -11/Scrapyard -10/Materials -10/Mines (discovered 1 exit: [*Mat]) History --------- Turn | Location | Event 5 | -11/Scrapyard | Discovered new exit (range 15) 62 | -11/Scrapyard | Entered Materials 306 | -10/Materials | Build established: Mutant 385 | -10/Materials | Discovered new exit (range 14) 415 | -10/Materials | Entered Mines 446 | -10/Mines | Met a Derelict bent on vengeance 492 | -10/Mines | Discovered new exit (range 6) 600 | -10/Mines | Core integrity fell below 50% 646 | -10/Mines | Lost 3 parts (1n2w) 740 | -10/Mines | Learned Materials non-interactive machine intel 785 | -10/Mines | Assembled infested the area 790 | -10/Mines | Assisted by a Guerilla fighting off Assembled 844 | -10/Mines | Core integrity fell below 20% 850 | -10/Mines | Destroyed by as-37354 with Assembled Blade Last Messages --------------- from, and they're closing on this area, come on!" B1-HEA(h): "I'll hold them off! Go on ahead or try to find another way!" HV Slug penetrates Wall. T-07 Excavator system corrupted by crushing effect. T-07 Excavator system terminally corrupted. HV Slug penetrates Wall. Lgt. Ion Engine destroyed. Aluminum Leg destroyed. Different forms of propulsion may not be used simultaneously, Aluminum Leg automatically deactivated. Acquired 3 matter. Sml. Laser destroyed. Lgt. Ion Engine destroyed. as-09150 destroyed. as-65821 destroyed. ZY-LKL(g) destroyed. as-28085 sneak attacks. K-01 Serf system corrupted by crushing effect. as-70281 sneak attacks. K-01 Serf destroyed. Map ----- +----------------------------------------------------+ | ?????????????######## #?????????????????? | | ???????????????######! #?????????????????? | | ???????????????#=*%==! #?????????????????? | | ???#########???#=##### ##?????????????????? | | ???# #???#*#???####??????????????????? | | ???# """ #???# #?????????????????????????? | | ???# """ ##### #?????????????????????????? | | ???# """ #?????????????????????????? | | ???# #######?????????????????????????? | | ???# < #####???????????????????????????? | | ???# #???????????????????????????? | | ???# * #???????????????????????????? | | ???######%#### #####???????????????????????? | | ????????#!#??# #???????????????????????? | | ????????#%#??# #???????????????????????? | | ???######=#??#### #?????#?????????????????? | | ???# |#?????# #### #####?????????????? | | ???# ######?????# ####??????????? | | ??## ###??????### ?????????? | | ??# #?????## ##### ?????????? | | ??# #???### %##??? % ??????????? | | ??# #??## aa ##?# * ## ??????????? | | ??# #??# ## % ##?????????????? | | ??# #?# a #??????????????? | | ??# ## ### a % #??????????????? | | ??# ## ##?## @a #??????????????? | | ??# ### #????## ##??????????????? | | ??# #?###?????## ##???????????????? | | ??# #????????## #????????????????? | | ??######???????## #?????? ?????????? | | ???????????????# #????? ????????? | | ???????????????# ##?? ????????? | | ???????????????# ## ???????? | | ???????????????# #???????? | | ???????????????## #?????????? | | ????????????????### aa ##?????????? | | ??????????????????## ## ####??????????? | | ???????????????????##aa##?####?????????????? | | ????????????????????#!!#########???????????? | | ????????????###?????# %| % #??????????? | | ???????????## ###??#*!######## #??????????? | | ??????????## ##?# =#???????????????????? | | ??????????# ### #????????#??????????? | | ??????????# #??????? #??????????? | | ??????????# #?????## #??????????? | | ??????????##### ######?#### ###????????? | | ??????????????## ##?????## ##???????? | | ???????????????# #??????# #######?? | | ???????????????# #??????? ?? | | ???????????????# #####???# % ??? | +----------------------------------------------------+ Best States ------------- Heat Dissipation 25 Energy Generation 10 Energy Capacity 250 Matter Stores 300 Matter Capacity 300 Sight Range 16 Terrain Scan Density 10 Evasion (%) 40 Recoil Reduction 2 Item Schematics ----------------- None Robot Schematics ------------------ None Fabricated ------------ Nothing Alien Tech Used ----------------- None Achievements -------------- None Challenges ------------ None Game ------ Seed ProcessingRegenerativeScythe Manual? 0 Play Time 00:12:41 Cumulative 2.6 hours Start 2020.09.23 @ 05:32:13 End 2020.09.23 @ 05:43:01 Sessions 1 Manual Loads 0 Difficulty Rogue Special Mode None Game No. 3 Rogue 3 Adventurer 0 Explorer 0 Win Type - Total 0 Types 0/0/0/0/0/0/0/0/0 Lore% 2 Gallery% 6 Achievement% 7 Wizard Run 0 Options --------- ASCII 0 Keyboard 1 Movement Numpad Keybinds 0 Fullscreen 2 Font 18/TerminusBold Map View 76x50 Tactical HUD 0 Map Filters NONE Filters NONE Steam 0 RUN: 400ecfe6-078c-49f7-b300-15fe00df37aa